[Event "November 21 Late 2023"]
[Site "https://www.chess.com"]
[Date "2023.11.21"]
[Round "8"]
[White "Wagner, Dennis"]
[Black "Lebedev, Artem S."]
[Result "1-0"]
[Board "27"]
[TimeControl "180+1"]
[WhiteFideId "24650684"]
[BlackFideId "34272747"]
[WhiteElo "2482"]
[BlackElo "1952"]
[WhiteTeam "GER"]
[BlackTeam "RUS"]
[WhiteClock "0:01:39"]
[BlackClock "0:00:02"]

1. d4 {[%clk 0:03:00]}  Nf6 {[%clk 0:02:59]} 2. c4 {[%clk 0:03:01]}  c5 {[%clk 0:02:59]} 3. d5 {[%clk 0:02:59]}  e6 {[%clk 0:03:00]} 4. Nc3 {[%clk 0:02:59]}  exd5 {[%clk 0:03:00]} 5. cxd5 {[%clk 0:03:00]}  d6 {[%clk 0:03:00]} 6. Nf3 {[%clk 0:03:00]}  g6 {[%clk 0:03:01]} 7. Bf4 {[%clk 0:03:00]}  a6 {[%clk 0:02:59]} 8. a4 {[%clk 0:03:01]}  Bg7 {[%clk 0:02:59]} 9. h3 {[%clk 0:02:58]}  O-O {[%clk 0:02:57]} 10. e3 {[%clk 0:02:59]}  Re8 {[%clk 0:02:56]} 11. Nd2 {[%clk 0:02:57]}  Nbd7 {[%clk 0:02:42]} 12. Be2 {[%clk 0:02:54]}  Ne5 {[%clk 0:02:42]} 13. Bh2 {[%clk 0:02:54]}  g5 {[%clk 0:02:22]} 14. O-O {[%clk 0:02:53]}  Nfd7 {[%clk 0:02:13]} 15. Qc2 {[%clk 0:02:46]}  Nf8 {[%clk 0:02:06]} 16. f4 {[%clk 0:02:35]}  Neg6 {[%clk 0:02:02]} 17. Nc4 {[%clk 0:02:35]}  gxf4 {[%clk 0:01:47]} 18. exf4 {[%clk 0:02:34]}  f5 {[%clk 0:01:45]} 19. Bd3 {[%clk 0:02:32]}  Qf6 {[%clk 0:01:43]} 20. Nb6 {[%clk 0:02:24]}  Rb8 {[%clk 0:01:38]} 21. Nxc8 {[%clk 0:02:24]}  Rbxc8 {[%clk 0:01:39]} 22. Bxf5 {[%clk 0:02:24]}  Rcd8 {[%clk 0:01:38]} 23. Kh1 {[%clk 0:02:22]}  c4 {[%clk 0:01:20]} 24. Rae1 {[%clk 0:02:17]}  Nh4 {[%clk 0:01:17]} 25. Bg4 {[%clk 0:02:09]}  Qd4 {[%clk 0:01:13]} 26. Be6+ {[%clk 0:02:02]}  Kh8 {[%clk 0:00:52]} 27. f5 {[%clk 0:02:01]}  Bf6 {[%clk 0:00:38]} 28. Rf4 {[%clk 0:01:51]}  Qd3 {[%clk 0:00:35]} 29. Qxd3 {[%clk 0:01:51]}  cxd3 {[%clk 0:00:36]} 30. Ne4 {[%clk 0:01:51]}  Nxe6 {[%clk 0:00:16]} 31. dxe6 {[%clk 0:01:42]}  Bxb2 {[%clk 0:00:09]} 32. Rxh4 {[%clk 0:01:40]}  d5 {[%clk 0:00:09]} 33. Ng5 {[%clk 0:01:39]}  Re7 {[%clk 0:00:07]} 34. Nf7+ {[%clk 0:01:38]}  Rxf7 {[%clk 0:00:02]} 35. exf7 {[%clk 0:01:39]}  d2 {[%clk 0:00:02]} 36. Re8+ {[%clk 0:01:39]}  Kg7 {[%clk 0:00:02]} 37. f8=Q# {[%clk 0:01:39]} 1-0

[Event "November 21 Late 2023"]
[Site "https://www.chess.com"]
[Date "2023.11.21"]
[Round "8"]
[White "Vasquez Vargas, Henry Richard"]
[Black "Sarana, Alexey"]
[Result "0-1"]
[Board "28"]
[TimeControl "180+1"]
[WhiteFideId "3836878"]
[BlackFideId "24133795"]
[WhiteElo "2012"]
[BlackElo "2707"]
[WhiteTeam "PER"]
[BlackTeam "SRB"]
[WhiteClock "0:00:15"]
[BlackClock "0:02:20"]

1. d4 {[%clk 0:03:00]}  Nf6 {[%clk 0:02:53]} 2. Nc3 {[%clk 0:03:00]}  d5 {[%clk 0:02:52]} 3. Bf4 {[%clk 0:03:00]}  e6 {[%clk 0:02:52]} 4. e3 {[%clk 0:03:00]}  Bd6 {[%clk 0:02:49]} 5. Nf3 {[%clk 0:02:59]}  Nc6 {[%clk 0:02:46]} 6. Bd3 {[%clk 0:02:57]}  Ne7 {[%clk 0:02:46]} 7. O-O {[%clk 0:02:55]}  Ng6 {[%clk 0:02:47]} 8. Bxd6 {[%clk 0:02:54]}  Qxd6 {[%clk 0:02:47]} 9. e4 {[%clk 0:02:54]}  dxe4 {[%clk 0:02:48]} 10. Nxe4 {[%clk 0:02:55]}  Nxe4 {[%clk 0:02:48]} 11. Bxe4 {[%clk 0:02:56]}  Bd7 {[%clk 0:02:48]} 12. c4 {[%clk 0:02:38]}  Bc6 {[%clk 0:02:46]} 13. d5 {[%clk 0:02:30]}  exd5 {[%clk 0:02:47]} 14. cxd5 {[%clk 0:02:30]}  Bb5 {[%clk 0:02:47]} 15. Re1 {[%clk 0:01:51]}  O-O {[%clk 0:02:47]} 16. Nd4 {[%clk 0:01:48]}  Bd7 {[%clk 0:02:45]} 17. Rc1 {[%clk 0:01:43]}  Rfe8 {[%clk 0:02:44]} 18. Qc2 {[%clk 0:01:42]}  Rac8 {[%clk 0:02:39]} 19. Nb3 {[%clk 0:01:26]}  b6 {[%clk 0:02:37]} 20. Rcd1 {[%clk 0:01:19]}  Re5 {[%clk 0:02:35]} 21. Bxg6 {[%clk 0:01:16]}  hxg6 {[%clk 0:02:36]} 22. Rxe5 {[%clk 0:01:16]}  Qxe5 {[%clk 0:02:37]} 23. Qc3 {[%clk 0:01:12]}  Qxc3 {[%clk 0:02:35]} 24. bxc3 {[%clk 0:01:12]}  Re8 {[%clk 0:02:35]} 25. Nd4 {[%clk 0:01:11]}  Re5 {[%clk 0:02:29]} 26. c4 {[%clk 0:01:10]}  Re4 {[%clk 0:02:30]} 27. f3 {[%clk 0:00:59]}  Re3 {[%clk 0:02:29]} 28. Kf2 {[%clk 0:01:00]}  Ra3 {[%clk 0:02:29]} 29. Rd2 {[%clk 0:00:58]}  Kf8 {[%clk 0:02:30]} 30. Ne2 {[%clk 0:00:48]}  Ke7 {[%clk 0:02:29]} 31. Rc2 {[%clk 0:00:31]}  Kd6 {[%clk 0:02:28]} 32. Ke1 {[%clk 0:00:23]}  Kc5 {[%clk 0:02:26]} 33. Kd2 {[%clk 0:00:23]}  Bf5 {[%clk 0:02:25]} 34. Rb2 {[%clk 0:00:20]}  Kxc4 {[%clk 0:02:25]} 35. d6 {[%clk 0:00:20]}  cxd6 {[%clk 0:02:24]} 36. Ng3 {[%clk 0:00:19]}  Rd3+ {[%clk 0:02:19]} 37. Ke2 {[%clk 0:00:19]}  Rc3 {[%clk 0:02:20]} 38. Rd2 {[%clk 0:00:15]}  d5 {[%clk 0:02:20]} 0-1

[Event "November 21 Late 2023"]
[Site "https://www.chess.com"]
[Date "2023.11.21"]
[Round "8"]
[White "Troff, Kayden"]
[Black "Poltorak, Sebastian"]
[Result "1-0"]
[Board "30"]
[TimeControl "180+1"]
[WhiteFideId "2047896"]
[BlackFideId "1199498"]
[WhiteElo "2544"]
[BlackElo "2250"]
[WhiteTeam "USA"]
[BlackTeam "POL"]
[WhiteClock "0:00:03"]
[BlackClock "0:00:02"]

1. d4 {[%clk 0:02:58]}  Nf6 {[%clk 0:02:53]} 2. c4 {[%clk 0:02:59]}  e6 {[%clk 0:02:52]} 3. Nf3 {[%clk 0:02:59]}  Bb4+ {[%clk 0:02:52]} 4. Bd2 {[%clk 0:02:59]}  Qe7 {[%clk 0:02:52]} 5. Nc3 {[%clk 0:02:59]}  Bxc3 {[%clk 0:02:52]} 6. Bxc3 {[%clk 0:03:00]}  Ne4 {[%clk 0:02:52]} 7. Rc1 {[%clk 0:03:00]}  Nxc3 {[%clk 0:02:53]} 8. Rxc3 {[%clk 0:03:01]}  O-O {[%clk 0:02:53]} 9. g3 {[%clk 0:03:01]}  d5 {[%clk 0:02:51]} 10. Bg2 {[%clk 0:02:59]}  Rd8 {[%clk 0:02:50]} 11. O-O {[%clk 0:02:58]}  c6 {[%clk 0:02:47]} 12. Qc2 {[%clk 0:02:52]}  Nd7 {[%clk 0:02:45]} 13. e4 {[%clk 0:02:51]}  dxc4 {[%clk 0:02:31]} 14. Rxc4 {[%clk 0:02:34]}  e5 {[%clk 0:02:30]} 15. d5 {[%clk 0:01:23]}  Nb6 {[%clk 0:02:20]} 16. Rc5 {[%clk 0:01:22]}  cxd5 {[%clk 0:02:17]} 17. exd5 {[%clk 0:01:23]}  Rxd5 {[%clk 0:02:14]} 18. Ng5 {[%clk 0:01:16]}  Qxc5 {[%clk 0:01:57]} 19. Qxh7+ {[%clk 0:01:15]}  Kf8 {[%clk 0:01:58]} 20. Qh8+ {[%clk 0:00:36]}  Ke7 {[%clk 0:01:57]} 21. Qxg7 {[%clk 0:00:37]}  Be6 {[%clk 0:01:40]} 22. Ne4 {[%clk 0:00:28]}  Qc2 {[%clk 0:00:45]} 23. Qg5+ {[%clk 0:00:25]}  Kf8 {[%clk 0:00:45]} 24. Qh6+ {[%clk 0:00:20]}  Ke7 {[%clk 0:00:46]} 25. Qh4+ {[%clk 0:00:16]}  Kf8 {[%clk 0:00:25]} 26. Ng5 {[%clk 0:00:13]}  Qg6 {[%clk 0:00:16]} 27. Be4 {[%clk 0:00:04]}  Qg7 {[%clk 0:00:09]} 28. Nh7+ {[%clk 0:00:03]}  Ke8 {[%clk 0:00:04]} 29. Nf6+ {[%clk 0:00:04]}  Kf8 {[%clk 0:00:04]} 30. Bxd5 {[%clk 0:00:03]}  Nxd5 {[%clk 0:00:03]} 31. Nxd5 {[%clk 0:00:02]}  Bxd5 {[%clk 0:00:03]} 32. Rd1 {[%clk 0:00:03]}  Be6 {[%clk 0:00:01]} 33. Rd8+ {[%clk 0:00:03]}  Rxd8 {[%clk 0:00:02]} 34. Qxd8# {[%clk 0:00:03]} 1-0

[Event "November 21 Late 2023"]
[Site "https://www.chess.com"]
[Date "2023.11.21"]
[Round "8"]
[White "BardArtem"]
[Black "Sturt, Raven"]
[Result "0-1"]
[Board "32"]
[TimeControl "180+1"]
[BlackFideId "2007304"]
[WhiteElo "2784"]
[BlackElo "2408"]
[BlackTeam "USA"]
[WhiteClock "0:00:01"]
[BlackClock "0:00:01"]

1. e4 {[%clk 0:03:00]}  e5 {[%clk 0:02:56]} 2. d4 {[%clk 0:02:59]}  exd4 {[%clk 0:02:56]} 3. Qxd4 {[%clk 0:03:00]}  Nc6 {[%clk 0:02:56]} 4. Qd3 {[%clk 0:02:58]}  Nf6 {[%clk 0:02:55]} 5. Nc3 {[%clk 0:02:58]}  Bb4 {[%clk 0:02:54]} 6. Bd2 {[%clk 0:02:58]}  d5 {[%clk 0:02:50]} 7. Nxd5 {[%clk 0:02:48]}  Bxd2+ {[%clk 0:02:47]} 8. Kxd2 {[%clk 0:02:36]}  O-O {[%clk 0:02:44]} 9. Re1 {[%clk 0:02:35]}  Ne5 {[%clk 0:02:42]} 10. Qc3 {[%clk 0:02:25]}  Nxd5 {[%clk 0:02:38]} 11. exd5 {[%clk 0:02:26]}  Qxd5+ {[%clk 0:02:37]} 12. Kc1 {[%clk 0:02:27]}  Ng4 {[%clk 0:02:34]} 13. Bc4 {[%clk 0:02:15]}  Qg5+ {[%clk 0:02:33]} 14. Kb1 {[%clk 0:02:09]}  Nxf2 {[%clk 0:02:33]} 15. Nf3 {[%clk 0:02:08]}  Qh5 {[%clk 0:02:19]} 16. Rhf1 {[%clk 0:01:58]}  Ng4 {[%clk 0:02:19]} 17. h3 {[%clk 0:01:56]}  Nh6 {[%clk 0:02:18]} 18. Re5 {[%clk 0:01:43]}  Bf5 {[%clk 0:02:04]} 19. g4 {[%clk 0:01:42]}  Qxh3 {[%clk 0:02:03]} 20. gxf5 {[%clk 0:01:35]}  Nxf5 {[%clk 0:01:49]} 21. Rg1 {[%clk 0:01:31]}  g6 {[%clk 0:01:41]} 22. Ng5 {[%clk 0:00:40]}  Qxc3 {[%clk 0:01:33]} 23. bxc3 {[%clk 0:00:41]}  Nd6 {[%clk 0:01:33]} 24. Bb3 {[%clk 0:00:37]}  Rfe8 {[%clk 0:01:32]} 25. Rd5 {[%clk 0:00:31]}  Re3 {[%clk 0:01:20]} 26. c4 {[%clk 0:00:24]}  h6 {[%clk 0:01:18]} 27. c5 {[%clk 0:00:18]}  Nb5 {[%clk 0:01:05]} 28. Rd7 {[%clk 0:00:15]}  hxg5 {[%clk 0:00:55]} 29. Bxf7+ {[%clk 0:00:14]}  Kf8 {[%clk 0:00:54]} 30. Rf1 {[%clk 0:00:15]}  Nc3+ {[%clk 0:00:50]} 31. Ka1 {[%clk 0:00:08]}  g4 {[%clk 0:00:36]} 32. Bxg6+ {[%clk 0:00:05]}  Rf3 {[%clk 0:00:36]} 33. Rh1 {[%clk 0:00:03]}  Rh3 {[%clk 0:00:33]} 34. Rf1+ {[%clk 0:00:03]}  Rf3 {[%clk 0:00:33]} 35. Rxf3+ {[%clk 0:00:01]}  gxf3 {[%clk 0:00:33]} 36. Rf7+ {[%clk 0:00:02]}  Kg8 {[%clk 0:00:32]} 37. Rxf3 {[%clk 0:00:03]}  Na4 {[%clk 0:00:31]} 38. c6 {[%clk 0:00:01]}  Rd8 {[%clk 0:00:26]} 39. Rf1 {[%clk 0:00:01]}  bxc6 {[%clk 0:00:25]} 40. Bf7+ {[%clk 0:00:01]}  Kg7 {[%clk 0:00:24]} 41. Bb3 {[%clk 0:00:02]}  Nb6 {[%clk 0:00:24]} 42. Rf7+ {[%clk 0:00:03]}  Kg6 {[%clk 0:00:22]} 43. Rxc7 {[%clk 0:00:03]}  Rd6 {[%clk 0:00:22]} 44. Rxa7 {[%clk 0:00:03]}  c5 {[%clk 0:00:23]} 45. a3 {[%clk 0:00:02]}  c4 {[%clk 0:00:21]} 46. Ba2 {[%clk 0:00:02]}  Kf5 {[%clk 0:00:21]} 47. Ra6 {[%clk 0:00:01]}  c3 {[%clk 0:00:15]} 48. Bb1 {[%clk 0:00:01]}  Ke4 {[%clk 0:00:14]} 49. Ra5 {[%clk 0:00:02]}  Nc4 {[%clk 0:00:13]} 50. Ra4 {[%clk 0:00:02]}  Rd4 {[%clk 0:00:06]} 51. Ka2 {[%clk 0:00:03]}  Nd2 {[%clk 0:00:05]} 52. Ra8 {[%clk 0:00:01]}  Rd6 {[%clk 0:00:04]} 53. Re8+ {[%clk 0:00:01]}  Kd4 {[%clk 0:00:04]} 54. Rh8 {[%clk 0:00:01]}  Rb6 {[%clk 0:00:05]} 55. Rh1 {[%clk 0:00:02]}  Rb2+ {[%clk 0:00:05]} 56. Ka1 {[%clk 0:00:03]}  Kc5 {[%clk 0:00:02]} 57. Rh5+ {[%clk 0:00:03]}  Kd4 {[%clk 0:00:03]} 58. Rh4+ {[%clk 0:00:03]}  Ne4 {[%clk 0:00:03]} 59. Rh8 {[%clk 0:00:02]}  Ke3 {[%clk 0:00:03]} 60. Re8 {[%clk 0:00:02]}  Kf4 {[%clk 0:00:03]} 61. a4 {[%clk 0:00:02]}  Rb4 {[%clk 0:00:02]} 62. Ra8 {[%clk 0:00:03]}  Nc5 {[%clk 0:00:02]} 63. Ka2 {[%clk 0:00:02]}  Ke3 {[%clk 0:00:01]} 64. a5 {[%clk 0:00:01]}  Ra4# {[%clk 0:00:01]} 0-1

[Event "November 21 Late 2023"]
[Site "https://www.chess.com"]
[Date "2023.11.21"]
[Round "8"]
[White "Skvortsov, Andrei"]
[Black "Ambartsumova, Karina"]
[Result "1-0"]
[Board "33"]
[TimeControl "180+1"]
[WhiteFideId "24108600"]
[BlackFideId "4166299"]
[WhiteElo "2357"]
[BlackElo "2240"]
[WhiteTeam "MNE"]
[BlackTeam "RUS"]
[WhiteClock "0:00:07"]
[BlackClock "0:00:00"]

1. e4 {[%clk 0:03:00]}  e5 {[%clk 0:02:59]} 2. Nf3 {[%clk 0:02:59]}  Nc6 {[%clk 0:03:00]} 3. Nc3 {[%clk 0:02:59]}  Nf6 {[%clk 0:02:59]} 4. d4 {[%clk 0:02:59]}  exd4 {[%clk 0:03:00]} 5. Nxd4 {[%clk 0:03:00]}  Bb4 {[%clk 0:03:00]} 6. Nxc6 {[%clk 0:03:00]}  bxc6 {[%clk 0:03:00]} 7. Bd3 {[%clk 0:03:00]}  O-O {[%clk 0:03:00]} 8. O-O {[%clk 0:03:01]}  d5 {[%clk 0:03:01]} 9. exd5 {[%clk 0:03:00]}  cxd5 {[%clk 0:03:02]} 10. h3 {[%clk 0:03:00]}  c6 {[%clk 0:02:56]} 11. Qf3 {[%clk 0:02:59]}  Rb8 {[%clk 0:02:56]} 12. Bf4 {[%clk 0:02:52]}  Bd6 {[%clk 0:02:56]} 13. b3 {[%clk 0:02:52]}  Qc7 {[%clk 0:02:44]} 14. Bg5 {[%clk 0:02:49]}  Be5 {[%clk 0:02:44]} 15. Bd2 {[%clk 0:02:31]}  Re8 {[%clk 0:02:24]} 16. Rae1 {[%clk 0:02:30]}  Bd7 {[%clk 0:02:21]} 17. Na4 {[%clk 0:02:11]}  c5 {[%clk 0:02:12]} 18. Rxe5 {[%clk 0:02:08]}  Rxe5 {[%clk 0:02:02]} 19. Bf4 {[%clk 0:02:08]}  Rbe8 {[%clk 0:02:02]} 20. Nc3 {[%clk 0:02:04]}  Bc6 {[%clk 0:01:57]} 21. Qg3 {[%clk 0:01:27]}  Nh5 {[%clk 0:01:54]} 22. Bxe5 {[%clk 0:01:27]}  Qxe5 {[%clk 0:01:55]} 23. Qh4 {[%clk 0:01:12]}  Nf6 {[%clk 0:01:34]} 24. Qg3 {[%clk 0:01:01]}  Qxg3 {[%clk 0:01:19]} 25. fxg3 {[%clk 0:01:01]}  d4 {[%clk 0:01:16]} 26. Nb5 {[%clk 0:00:58]}  Bxb5 {[%clk 0:01:11]} 27. Bxb5 {[%clk 0:00:57]}  Re3 {[%clk 0:01:11]} 28. g4 {[%clk 0:00:54]}  h6 {[%clk 0:01:11]} 29. Rf5 {[%clk 0:00:51]}  Rc3 {[%clk 0:01:03]} 30. Bc4 {[%clk 0:00:41]}  Rxc2 {[%clk 0:00:57]} 31. Rxc5 {[%clk 0:00:40]}  Rxa2 {[%clk 0:00:53]} 32. Rc7 {[%clk 0:00:26]}  Ne4 {[%clk 0:00:41]} 33. Rc8+ {[%clk 0:00:26]}  Kh7 {[%clk 0:00:37]} 34. Bd3 {[%clk 0:00:26]}  f5 {[%clk 0:00:24]} 35. gxf5 {[%clk 0:00:25]}  Ra1+ {[%clk 0:00:16]} 36. Kh2 {[%clk 0:00:25]}  Nf6 {[%clk 0:00:12]} 37. Rd8 {[%clk 0:00:25]}  Ra3 {[%clk 0:00:10]} 38. Bc4 {[%clk 0:00:24]}  Ra2 {[%clk 0:00:04]} 39. Rxd4 {[%clk 0:00:24]}  a5 {[%clk 0:00:04]} 40. Kg3 {[%clk 0:00:22]}  Rb2 {[%clk 0:00:04]} 41. Kf3 {[%clk 0:00:21]}  Rb1 {[%clk 0:00:03]} 42. g4 {[%clk 0:00:21]}  Ra1 {[%clk 0:00:03]} 43. Bf7 {[%clk 0:00:20]}  h5 {[%clk 0:00:02]} 44. g5 {[%clk 0:00:19]}  Rf1+ {[%clk 0:00:01]} 45. Kg2 {[%clk 0:00:16]}  Rxf5 {[%clk 0:00:02]} 46. gxf6 {[%clk 0:00:14]}  Rxf6 {[%clk 0:00:03]} 47. Bxh5 {[%clk 0:00:14]}  Kh6 {[%clk 0:00:03]} 48. Bg4 {[%clk 0:00:14]}  Rb6 {[%clk 0:00:03]} 49. Rd3 {[%clk 0:00:14]}  Rb4 {[%clk 0:00:03]} 50. Re3 {[%clk 0:00:14]}  a4 {[%clk 0:00:03]} 51. bxa4 {[%clk 0:00:14]}  Rxa4 {[%clk 0:00:04]} 52. Re6+ {[%clk 0:00:14]}  Kh7 {[%clk 0:00:04]} 53. Re5 {[%clk 0:00:14]}  Kh6 {[%clk 0:00:04]} 54. Kg3 {[%clk 0:00:14]}  Ra3+ {[%clk 0:00:04]} 55. Kh4 {[%clk 0:00:12]}  Ra6 {[%clk 0:00:05]} 56. Rh5+ {[%clk 0:00:13]}  Kg6 {[%clk 0:00:05]} 57. Rg5+ {[%clk 0:00:13]}  Kh6 {[%clk 0:00:05]} 58. Rb5 {[%clk 0:00:13]}  Rd6 {[%clk 0:00:04]} 59. Kg3 {[%clk 0:00:14]}  Kh7 {[%clk 0:00:05]} 60. Kf4 {[%clk 0:00:14]}  Rf6+ {[%clk 0:00:04]} 61. Ke5 {[%clk 0:00:14]}  Rf8 {[%clk 0:00:04]} 62. Bf5+ {[%clk 0:00:15]}  Kh6 {[%clk 0:00:04]} 63. Rb6+ {[%clk 0:00:15]}  Kg5 {[%clk 0:00:03]} 64. Rg6+ {[%clk 0:00:15]}  Kh4 {[%clk 0:00:03]} 65. Rxg7 {[%clk 0:00:14]}  Re8+ {[%clk 0:00:04]} 66. Kf6 {[%clk 0:00:13]}  Rf8+ {[%clk 0:00:04]} 67. Rf7 {[%clk 0:00:12]}  Rh8 {[%clk 0:00:02]} 68. Kg7 {[%clk 0:00:10]}  Rh5 {[%clk 0:00:02]} 69. Bg4 {[%clk 0:00:10]}  Rg5+ {[%clk 0:00:02]} 70. Kh6 {[%clk 0:00:10]}  Ra5 {[%clk 0:00:02]} 71. Rf5 {[%clk 0:00:10]}  Ra6+ {[%clk 0:00:01]} 72. Kg7 {[%clk 0:00:10]}  Ra7+ {[%clk 0:00:01]} 73. Kf6 {[%clk 0:00:10]}  Ra6+ {[%clk 0:00:02]} 74. Kf7 {[%clk 0:00:09]}  Ra7+ {[%clk 0:00:02]} 75. Ke8 {[%clk 0:00:09]}  Ra8+ {[%clk 0:00:02]} 76. Kd7 {[%clk 0:00:10]}  Ra7+ {[%clk 0:00:03]} 77. Kc6 {[%clk 0:00:11]}  Ra6+ {[%clk 0:00:03]} 78. Kb5 {[%clk 0:00:11]}  Rh6 {[%clk 0:00:04]} 79. Kc4 {[%clk 0:00:10]}  Rc6+ {[%clk 0:00:03]} 80. Kd4 {[%clk 0:00:11]}  Rh6 {[%clk 0:00:04]} 81. Rf7 {[%clk 0:00:08]}  Rh8 {[%clk 0:00:05]} 82. Ke4 {[%clk 0:00:08]}  Kg5 {[%clk 0:00:04]} 83. Rf5+ {[%clk 0:00:07]}  Kh4 {[%clk 0:00:05]} 84. Kf3 {[%clk 0:00:06]}  Rh6 {[%clk 0:00:05]} 85. Kg2 {[%clk 0:00:05]}  Rh8 {[%clk 0:00:05]} 86. Rf4 {[%clk 0:00:04]}  Kg5 {[%clk 0:00:04]} 87. Re4 {[%clk 0:00:05]}  Rb8 {[%clk 0:00:03]} 88. Bf3 {[%clk 0:00:05]}  Rh8 {[%clk 0:00:02]} 89. Kg3 {[%clk 0:00:04]}  Kf5 {[%clk 0:00:02]} 90. Rf4+ {[%clk 0:00:04]}  Ke5 {[%clk 0:00:03]} 91. h4 {[%clk 0:00:04]}  Rg8+ {[%clk 0:00:02]} 92. Bg4 {[%clk 0:00:04]}  Rh8 {[%clk 0:00:02]} 93. h5 {[%clk 0:00:04]}  Rh6 {[%clk 0:00:02]} 94. Rf5+ {[%clk 0:00:04]}  Ke4 {[%clk 0:00:03]} 95. Kh4 {[%clk 0:00:04]}  Rh8 {[%clk 0:00:03]} 96. Rf6 {[%clk 0:00:04]}  Ke5 {[%clk 0:00:02]} 97. Kg5 {[%clk 0:00:03]}  Rg8+ {[%clk 0:00:02]} 98. Rg6 {[%clk 0:00:04]}  Rh8 {[%clk 0:00:03]} 99. h6 {[%clk 0:00:05]}  Ke4 {[%clk 0:00:03]} 100. Rg7 {[%clk 0:00:05]}  Ke5 {[%clk 0:00:03]} 101. Bf5 {[%clk 0:00:06]}  Kd6 {[%clk 0:00:03]} 102. h7 {[%clk 0:00:06]}  Ke5 {[%clk 0:00:00]} 103. Rg8 {[%clk 0:00:07]} 1-0

[Event "November 21 Late 2023"]
[Site "https://www.chess.com"]
[Date "2023.11.21"]
[Round "8"]
[White "elmusmolamas"]
[Black "Schnaider, Ilan"]
[Result "0-1"]
[Board "35"]
[TimeControl "180+1"]
[BlackFideId "169013"]
[WhiteElo "2589"]
[BlackElo "2373"]
[BlackTeam "ARG"]
[WhiteClock "0:00:13"]
[BlackClock "0:00:36"]

1. e4 {[%clk 0:03:00]}  c5 {[%clk 0:02:57]} 2. Nf3 {[%clk 0:03:01]}  Nc6 {[%clk 0:02:57]} 3. g3 {[%clk 0:03:00]}  g6 {[%clk 0:02:56]} 4. d4 {[%clk 0:02:57]}  cxd4 {[%clk 0:02:55]} 5. Nxd4 {[%clk 0:02:58]}  Bg7 {[%clk 0:02:56]} 6. Ne2 {[%clk 0:02:59]}  d6 {[%clk 0:02:50]} 7. Bg2 {[%clk 0:02:58]}  Nf6 {[%clk 0:02:47]} 8. O-O {[%clk 0:02:57]}  O-O {[%clk 0:02:48]} 9. Nbc3 {[%clk 0:02:58]}  e5 {[%clk 0:02:44]} 10. h3 {[%clk 0:02:52]}  h6 {[%clk 0:02:43]} 11. Nb5 {[%clk 0:02:50]}  Ne8 {[%clk 0:02:39]} 12. c4 {[%clk 0:02:49]}  Be6 {[%clk 0:02:38]} 13. Nbc3 {[%clk 0:02:49]}  Bxc4 {[%clk 0:02:38]} 14. Nd5 {[%clk 0:02:46]}  Nd4 {[%clk 0:02:37]} 15. Nxd4 {[%clk 0:02:39]}  Bxf1 {[%clk 0:02:36]} 16. Bxf1 {[%clk 0:02:12]}  exd4 {[%clk 0:02:35]} 17. Bc4 {[%clk 0:02:13]}  Nf6 {[%clk 0:02:32]} 18. Qd3 {[%clk 0:02:06]}  Nxd5 {[%clk 0:02:31]} 19. Bxd5 {[%clk 0:02:07]}  Qb6 {[%clk 0:02:30]} 20. b3 {[%clk 0:01:54]}  Rac8 {[%clk 0:02:30]} 21. Bb2 {[%clk 0:01:55]}  Kh7 {[%clk 0:02:28]} 22. Rd1 {[%clk 0:01:55]}  a5 {[%clk 0:02:25]} 23. h4 {[%clk 0:01:55]}  h5 {[%clk 0:02:25]} 24. f3 {[%clk 0:01:48]}  a4 {[%clk 0:02:24]} 25. g4 {[%clk 0:01:48]}  a3 {[%clk 0:02:21]} 26. Ba1 {[%clk 0:01:46]}  Be5 {[%clk 0:02:09]} 27. Kh1 {[%clk 0:01:28]}  Qd8 {[%clk 0:02:02]} 28. g5 {[%clk 0:01:15]}  Qd7 {[%clk 0:02:02]} 29. Kg2 {[%clk 0:01:02]}  f5 {[%clk 0:01:53]} 30. exf5 {[%clk 0:00:55]}  Qxf5 {[%clk 0:01:45]} 31. Be4 {[%clk 0:00:55]}  Qe6 {[%clk 0:01:46]} 32. Bxd4 {[%clk 0:00:44]}  Bxd4 {[%clk 0:00:46]} 33. Qxd4 {[%clk 0:00:45]}  Rcd8 {[%clk 0:00:45]} 34. Qb4 {[%clk 0:00:17]}  d5 {[%clk 0:00:40]} 35. Rxd5 {[%clk 0:00:15]}  Rxd5 {[%clk 0:00:37]} 36. Qxf8 {[%clk 0:00:16]}  Rd2+ {[%clk 0:00:36]} 37. Kg1 {[%clk 0:00:16]}  Qb6+ {[%clk 0:00:34]} 38. Kh1 {[%clk 0:00:16]}  Rd1+ {[%clk 0:00:34]} 39. Kh2 {[%clk 0:00:14]}  Qf2+ {[%clk 0:00:35]} 40. Kh3 {[%clk 0:00:13]}  Rh1# {[%clk 0:00:36]} 0-1

[Event "November 21 Late 2023"]
[Site "https://www.chess.com"]
[Date "2023.11.21"]
[Round "8"]
[White "Gubajdullin, Alexei"]
[Black "Erzhanov, Arman"]
[Result "1-0"]
[Board "37"]
[TimeControl "180+1"]
[WhiteFideId "4141202"]
[BlackFideId "4138821"]
[WhiteElo "2280"]
[BlackElo "2171"]
[WhiteTeam "RUS"]
[BlackTeam "KAZ"]
[WhiteClock "0:00:26"]
[BlackClock "0:00:02"]

1. d4 {[%clk 0:03:00]}  d6 {[%clk 0:02:46]} 2. Nf3 {[%clk 0:03:00]}  Bg4 {[%clk 0:02:44]} 3. Bf4 {[%clk 0:02:51]}  Nd7 {[%clk 0:02:42]} 4. Nbd2 {[%clk 0:02:51]}  Ngf6 {[%clk 0:02:37]} 5. h3 {[%clk 0:02:50]}  Bh5 {[%clk 0:02:35]} 6. c3 {[%clk 0:02:46]}  h6 {[%clk 0:02:34]} 7. Qb3 {[%clk 0:02:45]}  Qc8 {[%clk 0:02:33]} 8. e4 {[%clk 0:02:42]}  e6 {[%clk 0:02:25]} 9. e5 {[%clk 0:02:37]}  dxe5 {[%clk 0:02:23]} 10. Nxe5 {[%clk 0:02:37]}  Nxe5 {[%clk 0:02:20]} 11. Bxe5 {[%clk 0:02:37]}  Nd7 {[%clk 0:02:16]} 12. Bg3 {[%clk 0:02:32]}  Bg6 {[%clk 0:02:11]} 13. a4 {[%clk 0:01:57]}  c6 {[%clk 0:02:01]} 14. a5 {[%clk 0:01:56]}  a6 {[%clk 0:02:00]} 15. Nc4 {[%clk 0:01:55]}  Nf6 {[%clk 0:01:51]} 16. Nd6+ {[%clk 0:01:54]}  Bxd6 {[%clk 0:01:51]} 17. Bxd6 {[%clk 0:01:54]}  Qd7 {[%clk 0:01:49]} 18. Bb4 {[%clk 0:01:50]}  Qd5 {[%clk 0:01:49]} 19. Qd1 {[%clk 0:01:46]}  Qe4+ {[%clk 0:01:43]} 20. Be2 {[%clk 0:01:43]}  Nd5 {[%clk 0:01:39]} 21. Bd6 {[%clk 0:01:39]}  O-O-O {[%clk 0:01:34]} 22. Bg3 {[%clk 0:01:38]}  Nf4 {[%clk 0:01:32]} 23. Bxf4 {[%clk 0:01:35]}  Qxf4 {[%clk 0:01:33]} 24. O-O {[%clk 0:01:31]}  e5 {[%clk 0:01:33]} 25. Ra4 {[%clk 0:01:15]}  exd4 {[%clk 0:01:30]} 26. cxd4 {[%clk 0:01:14]}  Be4 {[%clk 0:01:23]} 27. Qb3 {[%clk 0:01:06]}  Qd2 {[%clk 0:01:11]} 28. Rb4 {[%clk 0:00:56]}  Bc2 {[%clk 0:00:36]} 29. Bg4+ {[%clk 0:00:47]}  f5 {[%clk 0:00:29]} 30. Bxf5+ {[%clk 0:00:32]}  Bxf5 {[%clk 0:00:26]} 31. Rxb7 {[%clk 0:00:32]}  Qf4 {[%clk 0:00:24]} 32. Qb6 {[%clk 0:00:28]}  Be4 {[%clk 0:00:12]} 33. Qa7 {[%clk 0:00:27]}  Rd7 {[%clk 0:00:02]} 34. Qa8+ {[%clk 0:00:27]}  Qb8 {[%clk 0:00:02]} 35. Qxb8# {[%clk 0:00:26]} 1-0